bitfinex/quotes_ETHUSD_20220731
["timestamp","ask_amount","ask_price","bid_price","bid_amount"]
[1659294429839,0.34471435,1718.8,1718.3,0.25817]
[1659294429840,0.34868395,1718.8,1718.3,0.25817]
[1659294430045,0.0039696,1718.8,1718.4,2.89804672]
[1659294430350,0.0039696,1718.8,1718.4,6.09605119]
[1659294430513,0.0039696,1718.8,1718.5,0.4377]
[1659294430718,0.3,1719.0,1718.6,0.25816]
[1659294430951,0.3,1719.0,1718.6,0.05816]
[1659294431342,3.8039694,1719.0,1718.6,0.05816]
[1659294431548,0.3039694,1719.0,1718.6,0.05816]
[1659294432211,0.3,1719.0,1718.6,0.49586]
[1659294432456,0.3,1719.0,1718.6,0.05816]
[1659294432764,2.89804672,1718.9,1718.4,0.29075]
[1659294433025,7.0,1718.5,1718.2,0.05]
[1659294433289,7.0,1718.5,1717.9,0.05]
[1659294433496,3.5,1718.5,1717.8,0.05]
[1659294433679,3.5,1718.5,1717.7,0.05818]
[1659294433680,0.007,1718.2,1717.7,0.10818]
[1659294433873,2.90504672,1718.2,1717.7,0.05818]
[1659294434675,0.007,1718.2,1717.7,0.05818]
[1659294435267,0.007,1718.2,1717.7,0.49608]
[1659294435573,0.007,1718.2,1717.8,0.2]
[1659294435788,0.007,1718.2,1717.8,0.49092]
[1659294436393,0.007,1718.2,1718.1,6.2]
[1659294436565,0.007,1718.2,1718.1,6.0]
[1659294436830,0.007,1718.2,1718.1,9.4]
[1659294437048,0.05,1718.6,1718.3,0.2]
[1659294437212,0.00417419,1718.8,1718.5,0.2]
[1659294437410,0.29888854,1718.9,1718.6,3.0]
[1659294437962,0.29888854,1718.9,1718.5,0.05816]
[1659294438309,2.89804672,1718.9,1718.5,0.05816]
[1659294438510,3.5,1718.8,1718.5,0.349]
[1659294438746,2.89804672,1718.7,1718.5,0.05816]
[1659294438953,3.5,1718.8,1718.5,0.05816]
[1659294438954,6.39804672,1718.8,1718.5,0.05816]
[1659294439109,2.89804672,1718.8,1718.5,0.05816]
[1659294439312,3.19804672,1719.0,1718.5,0.05816]
[1659294439543,3.14804672,1719.0,1718.5,0.05816]
[1659294440580,0.25,1719.0,1718.5,0.05816]
[1659294440726,0.25,1719.0,1718.6,0.2]
[1659294440925,0.25,1719.0,1718.8,0.2]
[1659294441159,0.05,1719.4,1719.0,0.05814]
[1659294441363,0.24888854,1719.5,1719.0,0.15396581]
[1659294441574,0.24888854,1719.5,1719.0,0.34886]
[1659294441730,0.24888854,1719.5,1719.0,0.05814]
[1659294443331,3.74888854,1719.5,1719.0,0.05814]
[1659294443763,8.0,1719.0,1718.0,0.29100328]
[1659294444075,2.89804672,1718.9,1718.0,0.2]
[1659294444262,0.05,1718.9,1718.3,0.2]
[1659294444458,0.05,1719.1,1718.6,0.2]
[1659294444632,0.24888854,1719.1,1718.6,0.2]
[1659294444835,2.89804672,1719.0,1718.6,0.15]
[1659294445053,2.89804672,1719.0,1718.6,0.05816]
[1659294445645,2.89804672,1719.1,1718.6,0.05816]
[1659294446333,0.05418059,1719.3,1718.7,0.09582581]
[1659294446701,0.05418059,1719.3,1719.2,0.15]
[1659294446702,0.00418059,1719.3,1719.2,0.15]
[1659294447176,11.77,1719.7,1719.2,0.15]
[1659294447346,2.89804672,1719.6,1719.1,0.15396581]
[1659294447527,2.71363915,1719.6,1719.3,0.15]
[1659294447731,14.61804672,1719.7,1719.3,0.20814]
[1659294448170,11.72,1719.7,1719.3,0.05814]
[1659294448339,11.72,1719.7,1719.3,0.15396581]
[1659294448340,14.61804672,1719.7,1719.3,0.15396581]
[1659294448751,2.89804672,1719.6,1719.3,0.05814]
[1659294449475,2.89804672,1719.8,1719.3,0.05814]
[1659294449772,3.14693526,1719.8,1719.3,0.05814]
[1659294449985,6.39804672,1719.7,1719.3,0.05814]
[1659294450271,3.14693526,1719.6,1719.3,0.05814]
[1659294450477,20.51104672,1719.5,1719.0,0.05]
[1659294450680,20.51104672,1719.5,1718.8,0.05]
[1659294450681,2.89804672,1719.4,1718.8,0.05]
[1659294450847,2.89804672,1719.4,1718.6,10.6152]
[1659294451178,0.24888854,1719.3,1718.6,7.87876238]
[1659294451379,3.14693526,1719.3,1718.6,7.82876238]
[1659294451669,3.14693526,1719.3,1718.6,8.39236947]
[1659294452149,3.14693526,1719.3,1719.0,0.05816]
[1659294452529,0.05,1718.8,1718.4,3.0]
[1659294452744,0.05,1718.6,1718.1,11.9727]
[1659294452926,6.94804672,1718.6,1718.1,11.9727]
[1659294453125,6.94804672,1718.6,1718.0,0.28920105]
[1659294453309,6.94804672,1718.6,1717.9,8.29288]
[1659294453310,2.89804672,1718.5,1717.9,8.29288]
[1659294453742,2.89804672,1718.5,1717.9,8.52090921]
[1659294454333,2.89804672,1718.6,1717.9,8.52090921]
[1659294454548,0.05,1718.7,1717.9,8.57908921]
[1659294454549,2.94804672,1718.7,1717.9,8.57908921]
[1659294454749,2.89804672,1718.7,1717.9,8.57908921]
[1659294455163,2.89804672,1718.7,1718.0,0.4379]
[1659294455717,2.89804672,1718.7,1717.9,9.01698921]
[1659294455918,9.01104672,1718.7,1717.9,8.57908921]
[1659294456132,12.51104672,1718.5,1717.9,0.34438921]
[1659294456365,12.51104672,1718.5,1717.9,0.05818]
[1659294456366,9.01104672,1718.4,1717.9,0.05818]
[1659294456571,6.113,1718.1,1717.8,0.05]
[1659294456719,3.27284235,1718.0,1717.6,0.0582]
[1659294456921,2.89804672,1717.9,1717.6,0.0582]
[1659294457154,0.37479563,1718.0,1717.6,0.0582]
[1659294457336,2.9913,1718.3,1717.6,0.0582]
[1659294457337,3.0413,1718.3,1717.6,0.0582]
[1659294457538,2.89804672,1718.2,1717.6,0.0582]
[1659294457766,6.113,1717.9,1717.6,0.0582]
[1659294457920,9.01104672,1717.8,1717.3,0.10822]
[1659294458120,9.01104672,1717.7,1717.3,0.06185767]
[1659294458321,3.27284235,1717.6,1717.3,0.06185767]
[1659294458623,2.89804672,1717.5,1717.3,0.06185767]
[1659294459058,2.89804672,1717.5,1717.3,0.05822]
[1659294459440,2.89804672,1717.5,1717.3,0.1003]
[1659294461525,2.94804672,1717.5,1717.3,0.1003]
[1659294461725,2.89804672,1717.4,1717.3,0.1003]
[1659294461972,2.89804672,1717.4,1717.3,0.05822]
[1659294462286,0.05,1717.5,1717.3,0.05822]
[1659294462287,0.37479563,1717.6,1717.3,0.05822]
[1659294462569,0.05,1717.9,1717.5,0.15]
[1659294462726,0.05,1718.2,1718.0,0.15]
[1659294462929,0.05,1718.6,1718.0,0.15]
[1659294463177,3.0,1718.7,1718.3,0.15]
[1659294463683,0.05,1719.0,1718.9,3.5]
[1659294463882,0.00419632,1719.3,1718.9,0.02832456]
[1659294464090,0.00419632,1719.3,1718.7,3.70905636]
[1659294464091,0.00419632,1719.3,1718.7,0.3877]
[1659294464270,0.00419632,1719.3,1718.7,0.05815]
[1659294464787,0.00419632,1719.3,1718.6,0.05]
[1659294464788,10.1006,1719.2,1718.6,0.05]
[1659294464930,10.1006,1719.2,1718.5,0.05]
[1659294465128,10.1006,1719.2,1718.4,0.05]
[1659294465376,0.4376,1719.2,1718.5,0.08650117]
[1659294465555,0.05,1719.3,1718.5,0.08650117]
[1659294465759,9.663,1719.2,1718.5,0.13650117]
[1659294465961,10.47539563,1719.2,1718.5,0.08650117]
[1659294466158,9.98779563,1719.2,1718.5,0.08650117]
[1659294466389,3.55,1719.3,1718.6,3.66173108]
[1659294466390,0.05,1719.3,1718.6,3.66173108]
[1659294466549,0.05,1719.4,1718.7,0.02832786]
[1659294466754,0.43739,1719.9,1718.7,0.02832786]
[1659294466755,0.43739,1719.9,1719.5,0.15]
[1659294467079,0.43739,1719.9,1719.2,0.2]
[1659294467080,0.43739,1719.9,1719.6,0.4375]
[1659294467230,0.43739,1719.9,1719.6,0.04213098]
[1659294467431,0.43739,1719.9,1719.8,3.65]
[1659294467631,10.50868771,1721.0,1720.3,0.15]
[1659294467632,7.6311,1721.0,1720.3,0.15]
[1659294467832,2.8236,1721.1,1720.4,0.04211139]
[1659294468035,2.8236,1721.1,1720.4,0.10022139]
[1659294468036,3.5,1721.0,1720.4,0.10022139]
[1659294468486,0.05,1720.7,1720.4,0.05811]
[1659294468648,3.5,1720.9,1720.4,0.05811]
[1659294468854,3.5,1720.6,1720.4,0.05811]
[1659294469361,9.613,1720.6,1720.4,0.05811]
[1659294469586,10.03779563,1720.6,1720.4,0.05811]
[1659294469738,6.113,1720.4,1720.1,0.05]
[1659294469938,7.0,1720.5,1719.8,0.05]
[1659294469939,14.113,1720.2,1719.8,0.05]
[1659294470165,14.113,1720.2,1719.6,0.05]
[1659294470166,3.5,1719.9,1719.6,0.05]
[1659294470363,3.5,1720.1,1719.7,0.05814]
[1659294470592,3.55,1720.4,1719.7,0.05814]
[1659294470787,0.05,1720.0,1719.7,0.05814]
[1659294471211,3.5,1720.2,1719.7,0.05814]
[1659294471716,6.48779563,1720.1,1719.7,0.05814]
[1659294472519,9.613,1720.0,1719.7,0.05814]
[1659294472821,0.37479563,1720.0,1719.7,0.05814]
[1659294474078,2.89804672,1719.9,1719.7,0.05814]
[1659294474308,2.84804672,1719.9,1719.7,0.05814]
[1659294475219,8.96104672,1719.9,1719.5,0.04277686]
[1659294475416,9.01104672,1719.8,1719.3,0.10815]
[1659294475614,2.89804672,1719.7,1719.3,0.05815]
[1659294476545,12.51104672,1719.7,1719.3,0.05815]
[1659294476712,9.06104672,1719.6,1719.1,0.05]
[1659294476927,6.113,1719.4,1719.0,0.05816]
[1659294477127,2.89804672,1719.3,1719.0,0.05816]
[1659294477424,0.05,1719.6,1719.0,0.05816]
[1659294477646,0.01763806,1719.7,1719.0,0.05816]
[1659294477848,2.91568478,1719.7,1719.0,0.08659457]
[1659294478098,2.89804672,1719.6,1719.0,0.08659457]
[1659294478266,9.01104672,1719.6,1719.0,0.08659457]
[1659294478421,2.89804672,1719.5,1719.0,0.08659457]
[1659294478864,3.32284235,1719.5,1719.0,0.08659457]
[1659294479024,2.89804672,1719.4,1719.0,0.08659457]
[1659294479229,0.37479563,1719.5,1719.0,0.08659457]
[1659294479422,0.37479563,1719.5,1719.0,0.52419457]
[1659294479423,2.89804672,1719.4,1719.0,0.52419457]
[1659294479621,0.37479563,1719.5,1719.0,0.08659457]
[1659294479821,0.37479563,1719.5,1719.1,0.4376]
[1659294480021,0.37479563,1719.5,1719.0,0.08659457]
[1659294480022,0.37479563,1719.5,1719.0,0.52419457]
[1659294480254,0.06763806,1719.7,1719.3,0.15]
[1659294480470,0.01763806,1719.7,1719.3,0.20813]
[1659294480973,0.01763806,1719.5,1719.3,0.20813]
[1659294481329,0.01763806,1719.5,1719.3,0.05813]
[1659294481523,0.37479563,1719.6,1719.3,0.05813]
[1659294481524,0.24243369,1719.6,1719.3,0.05813]
[1659294481724,0.05,1719.9,1719.3,0.19049194]
[1659294481979,8.9231,1720.1,1719.3,0.19049194]
[1659294481980,8.9731,1720.1,1719.3,0.19049194]
[1659294482177,2.89804672,1720.0,1719.3,0.19049194]
[1659294482478,3.14048041,1720.0,1719.3,7.64157117]
[1659294482698,0.01705816,1719.4,1719.3,7.64157117]
[1659294482886,0.01705816,1719.4,1719.3,0.64157117]
[1659294483094,0.65705816,1719.4,1719.3,0.20407117]
[1659294483297,0.65705816,1719.4,1719.3,0.05813]
[1659294483298,1.24605816,1719.4,1719.3,0.05813]
[1659294483522,0.01705816,1719.4,1719.3,0.05813]
[1659294483734,0.05,1719.8,1719.3,0.05813]
[1659294483880,2.96510488,1720.0,1719.5,0.34884]
[1659294484222,3.14048041,1719.9,1719.5,0.34884]
[1659294484532,2.89804672,1719.8,1719.5,0.34884]
[1659294486636,0.24243369,1719.9,1719.2,0.05]
[1659294486637,0.05,1719.5,1719.2,0.05]
[1659294486811,7.0,1719.4,1718.9,0.05]
[1659294487013,2.84265753,1719.7,1718.7,0.10816]
[1659294487014,2.89804672,1719.1,1718.7,0.10816]
[1659294487217,3.55,1719.2,1718.2,0.28868863]
[1659294487218,3.34205178,1718.6,1718.2,0.28868863]
[1659294487428,15.0,1718.8,1717.3,0.00334444]
[1659294487429,0.05,1718.1,1717.3,0.00334444]
[1659294487624,2.89804672,1717.9,1717.3,0.06154444]
[1659294487856,6.113,1717.8,1717.3,0.00334444]
[1659294488050,6.163,1717.6,1717.3,0.00334444]
[1659294488209,6.113,1717.6,1717.3,0.00334444]
[1659294488410,2.94804672,1717.9,1717.7,0.15]
[1659294488613,0.05,1718.3,1717.6,0.1]
[1659294488854,0.05,1718.4,1717.5,0.438]
[1659294489008,0.05,1718.4,1718.0,0.1]
[1659294489215,2.8546,1718.7,1718.2,0.1]
[1659294489417,2.8546,1718.7,1718.2,0.23236194]
[1659294489418,5.70264672,1718.7,1718.2,0.23236194]
[1659294489817,2.89804672,1718.7,1718.2,0.23236194]
[1659294490018,2.89804672,1718.7,1718.4,0.1]
[1659294490217,2.89804672,1718.7,1718.2,0.20024305]
[1659294490453,2.89804672,1718.7,1718.3,0.05817]
[1659294490923,6.113,1718.5,1718.3,0.05817]
[1659294491173,9.22339913,1718.4,1718.0,0.05]
[1659294491323,9.22339913,1718.4,1717.9,0.05819]
[1659294491324,0.24243369,1718.4,1717.9,0.05819]
[1659294491528,9.0323,1718.8,1718.0,0.23236194]
[1659294491529,0.05,1718.6,1718.0,0.23236194]
[1659294491753,2.89804672,1718.6,1718.0,0.23236194]
[1659294492160,3.11039913,1718.6,1718.0,3.26349791]
[1659294492378,1.0,1719.7,1718.7,0.3]
[1659294492670,0.01705816,1719.8,1719.5,0.1]
[1659294493194,6.7977,1720.6,1719.6,0.34471435]
[1659294493195,14.71,1720.6,1719.6,0.34471435]
[1659294493394,3.5,1720.0,1719.6,0.39471435]
[1659294493557,9.613,1720.2,1719.6,0.34471435]
[1659294493757,3.5,1720.0,1719.5,0.05]
[1659294493954,6.14308128,1719.9,1719.3,0.05]
[1659294494165,9.613,1719.7,1719.1,0.05]
[1659294494368,9.613,1719.7,1719.0,0.05]
[1659294494579,6.113,1719.7,1718.9,0.10815]
[1659294494786,0.1,1719.4,1718.9,0.05]
[1659294494998,0.1,1719.1,1718.7,0.05]
[1659294495198,3.0,1718.8,1718.5,0.05]
[1659294495405,3.0,1718.8,1718.3,0.05817]
[1659294495553,2.80159691,1719.2,1718.3,0.05817]
[1659294495554,0.05,1719.0,1718.3,0.05817]
[1659294495904,8.91459691,1719.2,1718.3,0.05817]
[1659294495905,0.05,1719.1,1718.3,0.05817]
[1659294496089,9.713,1718.8,1718.2,0.05]
[1659294496414,9.713,1718.8,1718.1,0.05]
[1659294496415,0.1,1718.3,1718.1,0.05]
[1659294496557,0.1,1718.3,1717.9,0.05819]
[1659294497805,0.03008128,1718.2,1717.9,0.05819]
[1659294497971,0.1,1718.1,1717.6,0.05]
[1659294498172,0.1,1718.1,1717.5,0.05821]
[1659294498382,6.213,1718.1,1717.5,0.05821]
[1659294498569,0.03008128,1718.0,1717.5,0.05821]
[1659294499362,0.03008128,1718.0,1717.5,0.52520436]
[1659294499565,0.13008128,1718.0,1717.5,0.52520436]
[1659294499762,0.13008128,1718.0,1717.5,0.34922]
[1659294499984,0.03008128,1718.0,1717.5,0.34922]
[1659294500191,0.03008128,1718.0,1717.6,0.34471435]
[1659294501099,0.05,1718.3,1717.7,0.4379]
[1659294501306,0.05,1718.5,1717.8,0.79381435]
[1659294501511,0.05,1718.6,1717.9,3.19804672]
[1659294501699,0.05,1718.7,1718.3,0.1]
[1659294501892,0.05,1719.0,1718.5,0.15816]
[1659294502140,0.05,1719.2,1718.5,0.15816]
[1659294502342,7.8939,1719.5,1718.6,5.67598436]
[1659294502343,0.05,1719.3,1718.6,5.67598436]
[1659294502545,0.03371333,1719.3,1718.6,5.67598436]
[1659294502757,0.03371333,1719.3,1718.7,0.17598436]
[1659294502894,0.03371333,1719.3,1718.7,0.23414436]
[1659294503100,0.03371333,1719.3,1718.7,0.57885871]
[1659294503296,0.03008128,1719.3,1718.7,0.57885871]
[1659294503496,0.03008128,1719.3,1718.7,0.40287435]
[1659294505202,8.91104672,1719.2,1718.7,0.40287435]
[1659294505408,2.89804672,1719.1,1718.7,0.40287435]
[1659294505606,9.01104672,1719.1,1718.7,0.69369435]
[1659294505822,2.89804672,1719.0,1718.7,0.69369435]
[1659294507047,2.89804672,1719.2,1718.7,0.69369435]
[1659294507228,0.03008128,1719.3,1718.7,0.69369435]
[1659294507428,0.05,1719.4,1718.7,0.69369435]
[1659294507429,0.05367794,1719.5,1718.8,0.4377]
[1659294507628,2.90172466,1719.5,1719.0,0.1]
[1659294507962,0.00367794,1719.5,1719.3,0.1]
[1659294508115,0.00367794,1719.5,1719.4,5.8]
[1659294508319,0.05,1719.9,1719.5,6.0]
[1659294508517,3.5,1720.4,1719.4,1.08221435]
[1659294508518,0.05,1720.2,1719.6,0.4375]
[1659294508746,0.05,1720.2,1719.5,0.05]
[1659294508747,3.5,1719.9,1719.5,0.05]
[1659294508952,3.5,1719.9,1719.3,0.05]
[1659294509124,0.05,1720.1,1719.3,0.44471435]
[1659294509326,0.05,1720.2,1719.5,0.1]
[1659294509536,0.05,1720.3,1719.5,2.99804672]
[1659294509735,3.55,1720.4,1719.6,3.4375]
[1659294509924,3.5,1720.4,1719.7,0.40283435]
[1659294510253,3.5,1720.4,1719.6,0.05]
[1659294510254,0.05,1720.0,1719.6,0.05]
[1659294510433,2.89804672,1719.9,1719.4,8.2403]
[1659294510622,2.89804672,1719.9,1719.3,0.34471435]
[1659294510966,0.03008128,1719.8,1719.5,0.05814]
[1659294511130,2.928128,1719.8,1719.5,0.05814]
[1659294511311,2.89804672,1719.8,1719.5,0.05814]
[1659294511514,9.01104672,1719.8,1719.5,0.05814]
[1659294511753,9.091128,1719.7,1719.5,0.05814]
[1659294512003,9.01104672,1719.6,1719.5,0.00014]
[1659294512217,9.01104672,1719.6,1719.2,0.05816]
[1659294512501,6.113,1719.4,1719.2,0.05816]
[1659294512703,2.89804672,1719.3,1718.9,0.10816]
[1659294512857,2.89804672,1719.3,1718.5,0.58840461]
[1659294512858,9.613,1719.1,1718.6,0.05]
[1659294513058,2.928128,1719.0,1718.5,0.29758461]
[1659294513406,2.89804672,1718.9,1718.4,0.34471435]
[1659294513755,2.89804672,1718.9,1718.4,0.63730832]
[1659294514500,0.03008128,1718.8,1718.4,0.63730832]
[1659294514693,2.928128,1718.8,1718.4,0.63730832]
[1659294515195,2.89804672,1718.7,1718.4,0.63730832]
[1659294515353,0.03008128,1718.8,1718.4,0.63730832]
[1659294515986,0.1,1719.1,1718.4,1.07510832]
[1659294516283,3.503,1719.4,1718.5,0.47004931]
[1659294516284,2.89804672,1719.0,1718.5,0.47004931]
[1659294516484,2.89804672,1719.0,1718.6,0.34471435]
[1659294516721,2.89804672,1719.0,1718.6,0.57885871]
[1659294517093,2.89804672,1719.0,1718.6,0.52069871]
[1659294517285,2.89804672,1719.0,1718.6,0.57885871]
[1659294519297,2.89804672,1719.0,1718.6,0.40287435]
[1659294521494,9.01104672,1719.0,1718.6,0.40287435]
[1659294521747,2.89804672,1718.9,1718.6,0.40287435]
[1659294521895,0.05,1719.2,1718.6,3.91460543]
[1659294522096,0.05,1719.4,1718.7,7.11707711]
[1659294522325,2.89804672,1719.3,1718.9,0.05815]
[1659294522600,2.89804672,1719.3,1718.9,0.34893]
[1659294523561,0.05,1719.6,1718.9,0.34893]
[1659294523713,11.2837,1719.7,1718.9,0.34893]
[1659294523714,2.89804672,1719.5,1718.9,0.34893]
[1659294524113,0.03008128,1719.4,1718.9,0.34893]
[1659294524432,2.89804672,1719.3,1718.9,0.34893]
[1659294525665,2.89804672,1719.3,1718.9,0.29893]
[1659294526220,0.08008128,1719.2,1718.9,0.29893]
[1659294526432,2.89804672,1719.1,1718.9,0.00815]
[1659294526634,9.01104672,1719.1,1718.9,0.00815]
[1659294526839,2.928128,1719.0,1718.9,0.00815]
[1659294527241,2.978128,1719.0,1718.9,0.00815]
[1659294528549,2.94804672,1719.0,1718.9,0.00815]
[1659294529533,9.06104672,1719.0,1718.9,0.00815]
[1659294529968,9.06104672,1719.0,1718.9,0.00015]
[1659294530283,9.06104672,1719.0,1718.5,0.05]
[1659294530284,0.05,1718.9,1718.5,0.05]
[1659294530461,9.01104672,1718.8,1718.4,0.29259397]
[1659294530622,0.05,1718.6,1718.4,0.05818]
[1659294530841,9.01104672,1718.5,1718.4,0.05818]
[1659294531240,9.01104672,1718.5,1718.0,0.05]
[1659294531472,9.01104672,1718.4,1717.8,0.05]
[1659294531670,9.01104672,1718.3,1717.7,3.1319]
[1659294531856,2.89804672,1718.2,1718.1,0.05819]
[1659294533240,2.89804672,1718.2,1718.1,0.00819]
[1659294533860,2.928128,1718.4,1718.1,0.00819]
[1659294534074,0.05,1718.7,1718.1,0.15819]
[1659294534273,2.89804672,1718.6,1718.1,0.33417436]
[1659294534521,2.89804672,1718.6,1718.1,0.91291436]
[1659294534679,2.89804672,1718.6,1718.2,0.34471435]
[1659294534842,6.5,1718.2,1718.0,0.05]
[1659294535045,3.5,1718.4,1717.6,0.29270299]
[1659294535046,2.89804672,1718.1,1717.6,0.34270299]
[1659294535242,2.89804672,1718.1,1717.6,0.00364495]
[1659294535495,2.89804672,1718.1,1717.8,0.291]
[1659294536043,2.89029618,1718.1,1717.8,0.291]
[1659294538686,0.03008128,1718.2,1717.8,0.291]
[1659294538917,0.05,1718.5,1718.3,0.15]
[1659294539125,13.892,1719.0,1718.3,0.15]
[1659294539126,0.05,1718.9,1718.3,0.20817]
[1659294539318,7.779,1719.0,1718.4,0.4378]
[1659294539719,7.779,1719.0,1718.3,0.54906]
[1659294539918,7.779,1719.0,1718.3,0.49906]
[1659294539919,13.892,1719.0,1718.3,0.49906]
[1659294540089,6.113,1719.0,1718.3,0.85269578]
[1659294540289,6.113,1719.0,1718.3,1.29049578]
[1659294540724,6.113,1719.0,1718.3,0.70269578]
[1659294540935,6.163,1718.8,1718.3,0.34906]
[1659294541102,2.94804672,1718.5,1718.3,0.05817]
[1659294541305,2.89804672,1718.4,1718.3,0.05817]
[1659294541947,2.89804672,1718.4,1717.9,0.34089]
[1659294541948,9.01104672,1718.4,1717.9,0.34089]
[1659294542132,9.01104672,1718.4,1717.7,0.34189351]
[1659294542133,2.89804672,1718.2,1717.7,0.34189351]
[1659294542327,0.05,1718.0,1717.6,0.438]
[1659294542514,2.89804672,1717.9,1717.5,11.83597]
[1659294542722,0.08008128,1718.0,1717.5,0.29097]
[1659294542907,0.08008128,1718.0,1717.7,0.05821]
[1659294543636,2.89804672,1717.9,1717.7,0.05821]
[1659294544045,2.89804672,1717.9,1717.4,0.10821]
[1659294544205,2.89804672,1717.9,1717.4,0.05821]
[1659294544206,2.89804672,1717.8,1717.4,0.05821]
[1659294544634,2.928128,1717.9,1717.5,0.00364391]
[1659294545102,2.89804672,1717.8,1717.5,0.00364391]
[1659294545342,2.89804672,1717.8,1717.4,0.05821]
[1659294547177,2.928128,1717.9,1717.4,0.05821]
[1659294547703,2.928128,1717.9,1717.5,0.38093872]
[1659294547857,2.928128,1717.9,1717.5,0.67193872]
[1659294548295,2.89804672,1717.8,1717.5,0.291]
[1659294549156,2.928128,1717.9,1717.5,0.291]
[1659294553106,6.39804672,1717.8,1717.5,0.291]
[1659294553343,6.39804672,1717.8,1717.2,0.33876605]
[1659294553344,0.341,1717.5,1717.2,0.33876605]
[1659294553542,9.65204672,1717.5,1716.9,0.05]
[1659294553745,9.01104672,1717.4,1716.8,0.05]
[1659294553984,2.89804672,1717.3,1716.6,0.10823]
[1659294554186,2.89804672,1717.3,1716.6,0.4561551]
[1659294555044,0.05,1716.9,1716.6,0.05823]
[1659294555280,2.89804672,1716.8,1716.3,0.34254609]
[1659294555444,0.05,1716.7,1716.3,0.29254609]
[1659294555794,0.05,1716.7,1716.2,0.05824]
[1659294556000,0.05,1716.7,1716.2,0.35249252]
[1659294556201,2.94804672,1716.7,1716.2,0.05824]
[1659294556351,2.89804672,1716.6,1716.2,0.05824]
[1659294556550,0.05,1716.4,1716.0,8.1325]
[1659294556784,2.89804672,1716.3,1716.0,8.0825]
[1659294556988,2.89804672,1716.3,1716.0,0.3]
[1659294557203,2.89804672,1716.3,1715.8,0.4384]
[1659294557492,2.94804672,1716.3,1715.6,0.05]
[1659294557661,8.0279,1716.7,1715.5,7.7825]
[1659294557662,0.05,1716.4,1715.5,7.8325]
[1659294557999,0.05,1716.4,1715.8,0.05825]
[1659294558155,0.05,1716.2,1715.8,0.05825]
[1659294558354,2.89804672,1716.1,1715.8,0.05825]
[1659294558753,0.05,1716.0,1715.8,0.05825]
[1659294558969,5.5,1715.9,1715.5,0.05]
[1659294559279,5.5,1715.9,1715.3,0.63363975]
[1659294559280,0.05,1715.7,1715.3,0.63363975]
[1659294559449,0.05,1715.5,1715.4,0.05827]
[1659294559649,0.4384,1715.8,1715.0,0.05]
[1659294559887,0.05,1715.9,1715.7,0.15]
[1659294560089,0.05,1716.3,1715.7,0.20826]
[1659294560273,2.7743,1716.5,1715.8,0.4384]
[1659294560274,2.89804672,1716.2,1715.8,0.4384]
[1659294560448,2.89804672,1716.2,1715.7,0.05826]
[1659294560650,3.24276107,1716.2,1715.7,0.05826]
[1659294560888,0.05,1716.4,1715.8,0.15]
[1659294561098,0.05,1716.6,1716.1,0.05825]
[1659294561284,3.3291,1717.8,1716.9,0.15]
[1659294561483,3.3291,1717.8,1716.9,0.2]
[1659294561673,3.3291,1717.8,1717.0,0.15]
[1659294562002,2.8912,1717.8,1717.0,0.6381]
[1659294562183,0.45961911,1717.7,1717.0,0.2]
[1659294562381,0.45961911,1717.7,1717.0,0.15]
[1659294562683,8.45961911,1717.7,1716.9,0.05]
[1659294562999,18.07261911,1717.7,1716.9,0.05]
[1659294563180,11.95961911,1717.7,1716.9,0.05]
[1659294563769,18.07261911,1717.7,1716.9,0.10822]
[1659294564051,0.438,1717.6,1716.9,0.10822]
[1659294564254,0.34471435,1717.5,1716.9,0.05822]
[1659294564561,0.34471435,1717.5,1717.2,0.15]
[1659294564827,2.9412,1717.8,1717.2,0.20821]
[1659294565147,3.23591435,1717.8,1717.2,3.4828025]
[1659294565347,0.78261435,1717.8,1717.2,0.20821]
[1659294565822,0.34471435,1717.8,1717.2,0.20821]
[1659294566930,0.34471435,1717.8,1717.4,0.15]
[1659294567736,0.45961911,1717.8,1717.4,0.15]
[1659294568873,0.45961911,1717.8,1717.4,0.20821]
[1659294569590,0.4913971,1718.1,1717.7,0.20819]
[1659294569591,0.0535971,1718.1,1717.7,0.20819]
[1659294569736,2.90164382,1718.1,1717.7,0.20819]
[1659294569936,0.0035971,1718.1,1717.9,0.15]
[1659294570444,2.89804672,1718.0,1717.7,0.05819]
[1659294570846,3.01295148,1718.0,1717.7,0.05819]
[1659294571642,2.96295148,1718.0,1717.7,0.05819]
[1659294572415,9.0375,1718.3,1717.7,0.05819]
[1659294572616,2.89804672,1718.2,1717.7,0.05819]
[1659294573028,0.00366928,1718.5,1718.4,3.5]
[1659294573234,14.36,1719.0,1718.4,7.0878]
[1659294573454,14.36,1719.0,1718.7,0.15]
[1659294573455,0.3,1719.0,1718.7,0.15]
[1659294574016,0.3,1719.0,1718.5,0.15]
[1659294574216,0.3,1719.0,1718.4,3.0]
[1659294574415,0.64471435,1719.0,1718.4,3.0]
[1659294574928,0.64471435,1719.0,1718.5,0.15]
[1659294575450,0.64471435,1719.0,1718.4,3.05816]
[1659294575652,10.25771435,1719.0,1718.3,11.8712]
[1659294575862,10.25771435,1719.0,1718.3,11.8212]
[1659294575863,0.11490476,1718.9,1718.3,11.8212]
[1659294576066,0.05,1718.7,1718.2,0.05818]
[1659294576280,0.05,1718.7,1718.0,0.05]
[1659294576281,0.3478,1718.6,1718.0,0.05]
[1659294576432,9.9608,1718.6,1717.8,0.77872]
[1659294576628,0.45961911,1718.5,1717.8,0.72872]
[1659294576831,0.45961911,1718.5,1717.9,0.05819]
[1659294578044,0.45961911,1718.5,1718.0,0.4379]
[1659294578364,3.35766583,1718.5,1718.0,0.4379]
[1659294578572,3.35766583,1718.5,1717.9,0.05819]